fUSD/lending_fUSD_20250222
["ID","MTS","AMOUNT","RATE_DAILY","PERIOD"]
[354046583,1740204632007,-156.69,9.892e-05,2]
[354046585,1740204632017,-40166.494,9.9e-05,2]
[354046587,1740204632026,-300.0,9.9e-05,2]
[354046589,1740204632035,-439.34,9.9e-05,2]
[354046591,1740204632044,-1974.03,9.9e-05,2]
[354046593,1740204632053,-439.34,9.9e-05,2]
[354046595,1740204632063,-987.36,9.9e-05,2]
[354046597,1740204632072,-156.69,9.989e-05,2]
[354046599,1740204632081,-278.13,9.99e-05,2]
[354046601,1740204632091,-987.36,9.99e-05,2]
[354046603,1740204632100,-150.0,9.99e-05,2]
[354046605,1740204632109,-987.36,9.99e-05,2]
[354046607,1740204632118,-4224.99760118,0.0001,2]
[354046609,1740204632127,-550.0,0.0001,2]
[354046611,1740204632136,-2242.68309,0.0001,2]
[354046613,1740204632145,-494.93,0.0001,2]
[354046615,1740204632154,-508.32,0.0001,2]
[354046617,1740204632163,-150.0,0.00010079,2]
[354046619,1740204632173,-156.69,0.00010086,2]
[354046621,1740204632182,-212.1876283,0.00010129,2]
[354046623,1740204632191,-150.0,0.00010129,2]
[354046625,1740204632200,-150.0,0.0001015,2]
[354046628,1740204632210,-500.0,0.00010175,2]
[354046630,1740204632219,-500.0,0.00010175,2]
[354046632,1740204632228,-500.0,0.00010175,2]
[354046633,1740204632237,-500.0,0.00010175,2]
[354046635,1740204632247,-500.0,0.00010175,2]
[354046636,1740204632256,-500.0,0.00010175,2]
[354046638,1740204632266,-500.0,0.00010175,2]
[354046640,1740204632275,-310.01422721,0.00010175,2]
[354046641,1740204632284,-439.34,0.000102,2]
[354046643,1740204632294,-277.93,0.000102,2]
[354046644,1740204632304,-1168.64,0.000102,2]
[354046645,1740204632313,-433.47,0.000102,2]
[354046646,1740204632322,-150.0,0.0001022,2]
[354046647,1740204632332,-150.0,0.00010238,2]
[354046648,1740204632341,-150.0,0.00010256,2]
[354046650,1740204632351,-1911.0,0.000103,2]
[354046652,1740204632360,-1960.0,0.000103,2]
[354046654,1740204632370,-150.0,0.0001038,2]
[354046656,1740204632379,-396.02007333,0.00010402,2]
[354046658,1740204632389,-1028.12,0.00010447,2]
[354046660,1740204632399,-150.0,0.0001046,2]
[354046662,1740204632408,-987.36,0.00010466,2]
[354046664,1740204632418,-194.44170442,0.00010475,2]
[354046666,1740204632427,-150.0,0.0001048,2]
[354046668,1740204632436,-206.45004098,0.000105,2]
[354046669,1740204632445,-206.4500408,0.000105,2]
[354046671,1740204632457,-167.27,0.00010505,2]
[354046673,1740204632467,-150.0,0.00010512,2]
[354046675,1740204632476,-396.02007333,0.00010558,2]
[354046677,1740204632486,-500.0,0.0001056,2]
[354046679,1740204632495,-150.0,0.00010586,2]
[354046681,1740204632504,-500.0,0.00010586,2]
[354046683,1740204632513,-150.0,0.00010616,2]
[354046684,1740204632524,-692.52,0.00010656,2]
[354046685,1740204632535,-1000.0,0.00010697,2]
[354046686,1740204632545,-150.0,0.00010703,2]
[354046687,1740204632554,-263.48,0.00010718,2]
[354046688,1740204632564,-206.4500408,0.00010765,2]
[354046689,1740204632574,-922.5332,0.00010858,2]
[354046690,1740204632584,-5036.106,0.00010858,2]
[354046691,1740204632593,-2500.0,0.00010858,2]
[354046692,1740204632603,-150.0,0.0001089,2]
[354046693,1740204632612,-396.02007335,0.00010892,2]
[354046695,1740204632622,-1400.0,0.000109,3]
[354046697,1740204632631,-505.88759615,0.00010958,2]
[354046699,1740204632641,-600.21,0.00010958,2]
[354046700,1740204632650,-500.0,0.00010958,2]
[354046701,1740204632659,-490.97163369,0.00010958,2]
[354046702,1740204632669,-500.0,0.00010958,2]
[354046704,1740204632678,-500.0,0.00010958,2]
[354046706,1740204632688,-339.18445401,0.00010958,2]
[354046708,1740204632697,-500.0,0.00010958,2]
[354046710,1740204632706,-323.40734824,0.00010958,2]
[354046711,1740204632716,-506.88565696,0.00010958,2]
[354046712,1740204632725,-500.0,0.00010958,2]
[354046713,1740204632735,-500.0,0.00010958,2]
[354046714,1740204632744,-500.0,0.00010958,2]
[354046715,1740204632754,-405.69288014,0.00010958,2]
[354046716,1740204632763,-500.0,0.00010958,2]
[354046717,1740204632773,-150.96535519,0.00010958,2]
[354046718,1740204632783,-500.0,0.00010958,2]
[354046719,1740204632793,-500.0,0.00010958,2]
[354046720,1740204632804,-500.0,0.00010958,2]
[354046721,1740204632814,-500.0,0.00010958,2]
[354046722,1740204632823,-500.0,0.00010958,2]
[354046723,1740204632832,-500.0,0.00010958,2]
[354046724,1740204632843,-500.0,0.00010958,2]
[354046725,1740204632854,-500.0,0.00010958,2]
[354046726,1740204632864,-413.04414599,0.00010958,2]
[354046727,1740204632873,-505.8195853,0.00010958,2]
[354046728,1740204632882,-440.12130269,0.00010958,2]
[354046729,1740204632892,-500.0,0.00010958,2]
[354046730,1740204632900,-500.0,0.00010958,2]
[354046731,1740204632912,-500.0,0.00010958,2]
[354046732,1740204632923,-500.0,0.00010958,2]
[354046733,1740204632933,-500.0,0.00010958,2]
[354046734,1740204632942,-500.0,0.00010958,2]
[354046735,1740204632952,-168.23852472,0.00010958,2]
[354046736,1740204632962,-248.42524104,0.00010958,2]
[354046737,1740204632972,-500.0,0.00010958,2]
[354046738,1740204632981,-476.38094957,0.00010958,2]
[354046739,1740204632991,-500.0,0.00010958,2]
[354046740,1740204633000,-500.0,0.00010958,2]
[354046741,1740204633010,-621.34035478,0.00010958,2]
[354046742,1740204633019,-500.0,0.00010958,2]
[354046743,1740204633028,-247.18263409,0.00010958,2]
[354046744,1740204633037,-500.0,0.00010958,2]
[354046745,1740204633046,-500.0,0.00010958,2]
[354046746,1740204633055,-500.0,0.00010958,2]
[354046747,1740204633065,-224.66230931,0.00010958,2]
[354046748,1740204633074,-500.0,0.00010958,2]
[354046749,1740204633084,-500.0,0.00010958,2]
[354046750,1740204633093,-500.0,0.00010958,2]
[354046751,1740204633102,-500.0,0.00010958,2]
[354046752,1740204633112,-500.0,0.00010958,2]
[354046753,1740204633121,-614.64390231,0.00010958,2]
[354046754,1740204633130,-500.0,0.00010958,2]
[354046755,1740204633139,-500.0,0.00010958,2]
[354046756,1740204633149,-500.0,0.00010958,2]
[354046757,1740204633158,-500.0,0.00010958,2]
[354046758,1740204633167,-571.88995804,0.00010958,2]
[354046759,1740204633176,-500.0,0.00010958,2]
[354046760,1740204633186,-500.0,0.00010958,2]
[354046761,1740204633195,-500.0,0.00010958,2]
[354046762,1740204633205,-500.0,0.00010958,2]
[354046763,1740204633215,-500.0,0.00010958,2]
[354046764,1740204633224,-500.0,0.00010958,2]
[354046765,1740204633233,-500.0,0.00010958,2]
[354046766,1740204633242,-500.0,0.00010958,2]
[354046767,1740204633251,-500.0,0.00010958,2]
[354046768,1740204633261,-300.45998629,0.00010958,2]
[354046769,1740204633270,-500.0,0.00010958,2]
[354046770,1740204633279,-290.31178261,0.00010958,2]
[354046771,1740204633288,-500.0,0.00010958,2]
[354046772,1740204633298,-500.0,0.00010958,2]
[354046773,1740204633307,-500.0,0.00010958,2]
[354046774,1740204633318,-271.54148975,0.00010958,2]
[354046775,1740204633327,-500.0,0.00010958,2]
[354046776,1740204633337,-190.48140659,0.00010958,2]
[354046777,1740204633346,-500.0,0.00010958,2]
[354046778,1740204633355,-151.0,0.00010958,2]
[354046779,1740204633366,-151.0,0.00010958,2]
[354046780,1740204633376,-214.93581098,0.00010958,2]
[354046781,1740204633386,-500.0,0.00010958,2]
[354046782,1740204633395,-500.0,0.00010958,2]
[354046783,1740204633405,-500.0,0.00010958,2]
[354046784,1740204633415,-500.0,0.00010958,2]
[354046785,1740204633425,-500.0,0.00010958,2]
[354046786,1740204633435,-500.0,0.00010958,2]
[354046787,1740204633445,-500.0,0.00010958,2]
[354046788,1740204633454,-500.0,0.00010958,2]
[354046789,1740204633465,-481.2838688,0.00010958,2]
[354046790,1740204633473,-619.462385,0.00010958,2]
[354046791,1740204633483,-500.0,0.00010958,2]
[354046792,1740204633493,-500.0,0.00010958,2]
[354046793,1740204633503,-504.16748179,0.00010958,2]
[354046794,1740204633513,-500.0,0.00010958,2]
[354046795,1740204633524,-500.0,0.00010958,2]
[354046796,1740204633536,-500.0,0.00010958,2]
[354046797,1740204633545,-504.68630809,0.00010958,2]
[354046798,1740204633555,-500.0,0.00010958,2]
[354046799,1740204633565,-500.0,0.00010958,2]
[354046800,1740204633575,-500.0,0.00010958,2]
[354046801,1740204633584,-708.193006,0.00010958,2]
[354046802,1740204633593,-500.0,0.00010958,2]
[354046803,1740204633603,-500.0,0.00010958,2]
[354046804,1740204633612,-500.0,0.00010958,2]
[354046805,1740204633621,-211.6457049,0.00010958,2]
[354046806,1740204633630,-450.44102254,0.00010958,2]
[354046807,1740204633640,-500.0,0.00010958,2]
[354046808,1740204633650,-500.0,0.00010958,2]
[354046809,1740204633660,-500.0,0.00010958,2]
[354046810,1740204633670,-500.0,0.00010958,2]
[354046811,1740204633681,-484.91825633,0.00010958,2]
[354046812,1740204633691,-500.0,0.00010958,2]
[354046813,1740204633701,-178.74358523,0.00010958,2]
[354046814,1740204633711,-500.0,0.00010958,2]
[354046815,1740204633720,-500.0,0.00010958,2]
[354046816,1740204633730,-500.0,0.00010958,2]
[354046817,1740204633740,-500.0,0.00010958,2]
[354046818,1740204633749,-500.0,0.00010958,2]
[354046819,1740204633759,-500.0,0.00010958,2]
[354046820,1740204633768,-500.0,0.00010958,2]
[354046821,1740204633778,-500.0,0.00010958,2]
[354046822,1740204633787,-500.0,0.00010958,2]
[354046823,1740204633797,-440.30231834,0.00010958,2]
[354046824,1740204633806,-500.0,0.00010958,2]
[354046825,1740204633815,-500.0,0.00010958,2]
[354046826,1740204633825,-509.12519619,0.00010958,2]
[354046827,1740204633835,-500.0,0.00010958,2]
[354046828,1740204633845,-500.0,0.00010958,2]
[354046829,1740204633855,-505.25906748,0.00010958,2]
[354046830,1740204633865,-500.0,0.00010958,2]
[354046831,1740204633875,-500.0,0.00010958,2]
[354046832,1740204633886,-224.90672183,0.00010958,2]
[354046833,1740204633896,-500.0,0.00010958,2]
[354046834,1740204633906,-500.0,0.00010958,2]
[354046835,1740204633916,-500.0,0.00010958,2]
[354046836,1740204633925,-500.0,0.00010958,2]
[354046837,1740204633935,-500.0,0.00010958,2]
[354046838,1740204633944,-500.0,0.00010958,2]
[354046839,1740204633953,-500.0,0.00010958,2]
[354046840,1740204633963,-637.12503477,0.00010958,2]
[354046841,1740204633972,-500.0,0.00010958,2]
[354046842,1740204633982,-506.82667424,0.00010958,2]
[354046843,1740204633991,-555.49155424,0.00010958,2]
[354046844,1740204634001,-523.22266142,0.00010958,2]
[354046845,1740204634010,-500.0,0.00010958,2]
[354046846,1740204634020,-500.0,0.00010958,2]
[354046847,1740204634029,-500.0,0.00010958,2]
[354046848,1740204634039,-500.0,0.00010958,2]
[354046849,1740204634049,-506.85482409,0.00010958,2]
[354046850,1740204634059,-500.0,0.00010958,2]
[354046851,1740204634068,-511.73026327,0.00010958,2]
[354046852,1740204634078,-500.0,0.00010958,2]
[354046853,1740204634254,-610.65154999,0.00010958,2]
[354046854,1740204634269,-500.0,0.00010958,2]
[354046855,1740204634279,-500.0,0.00010958,2]
[354046856,1740204634288,-465.00005717,0.00010958,2]
[354046857,1740204634299,-500.0,0.00010958,2]
[354046858,1740204634308,-500.0,0.00010958,2]
[354046859,1740204634318,-500.0,0.00010958,2]
[354046860,1740204634327,-500.0,0.00010958,2]
[354046861,1740204634337,-500.0,0.00010958,2]
[354046862,1740204634347,-500.0,0.00010958,2]
[354046863,1740204634356,-622.72,0.00010958,2]
[354046864,1740204634366,-500.0,0.00010958,2]
[354046865,1740204634376,-500.0,0.00010958,2]
[354046866,1740204634385,-2455.59,0.00010958,2]
[354046867,1740204634396,-500.0,0.00010958,2]
[354046868,1740204634406,-167.35209934,0.00010958,2]
[354046869,1740204634416,-500.0,0.00010958,2]
[354046870,1740204634425,-500.0,0.00010958,2]
[354046871,1740204634434,-500.0,0.00010958,2]
[354046872,1740204634443,-500.0,0.00010958,2]
[354046873,1740204634453,-500.0,0.00010958,2]
[354046874,1740204634462,-500.0,0.00010958,2]
[354046875,1740204634472,-500.0,0.00010958,2]
[354046876,1740204634481,-1617.7,0.00010958,2]
[354046877,1740204634491,-500.0,0.00010958,2]
[354046878,1740204634500,-54.51244502,0.00010958,2]
[354046879,1740204634517,-254.33428482,0.00010958,2]
[354046882,1740204637541,-191.15327016,0.00010958,2]
[354046883,1740204637550,-520.07081085,0.00010958,2]
[354046884,1740204637559,-313.77591899,0.00010958,2]
[354046885,1740204637599,-186.22408101,0.00010958,2]
[354046886,1740204637608,-500.0,0.00010958,2]
[354046887,1740204637617,-500.0,0.00010958,2]
[354046888,1740204637626,-517.71,0.00010958,2]
[354046889,1740204637635,-361.86516939,0.00010958,2]
[354046890,1740204637644,-500.0,0.00010958,2]
[354046891,1740204637653,-500.0,0.00010958,2]
[354046892,1740204637662,-927.42,0.00010958,2]
[354046893,1740204637671,-562.64,0.00010958,2]
[354046894,1740204637680,-167.8439266,0.00010958,2]
[354046895,1740204637689,-535.42830481,0.00010958,2]
[354046896,1740204637698,-500.0,0.00010958,2]
[354046897,1740204637708,-500.0,0.00010958,2]
[354046898,1740204637717,-500.0,0.00010958,2]
[354046899,1740204637726,-500.0,0.00010958,2]
[354046900,1740204637735,-500.0,0.00010958,2]
[354046901,1740204637744,-500.0,0.00010958,2]
[354046902,1740204637753,-500.0,0.00010958,2]
[354046903,1740204637762,-500.0,0.00010958,2]
[354046904,1740204637770,-500.0,0.00010958,2]
[354046905,1740204637779,-500.0,0.00010958,2]
[354046906,1740204637788,-500.0,0.00010958,2]
[354046907,1740204637797,-500.0,0.00010958,2]
[354046908,1740204637806,-500.0,0.00010958,2]
[354046909,1740204637815,-1250.05,0.00010958,2]
[354046910,1740204637824,-500.0,0.00010958,2]
[354046911,1740204637833,-500.0,0.00010958,2]
[354046912,1740204637841,-500.0,0.00010958,2]
[354046913,1740204637851,-500.0,0.00010958,2]
[354046914,1740204637860,-500.0,0.00010958,2]
[354046915,1740204637868,-500.0,0.00010958,2]
[354046916,1740204637877,-500.0,0.00010958,2]
[354046917,1740204637886,-500.0,0.00010958,2]
[354046918,1740204637894,-390.81851479,0.00010958,2]
[354046919,1740204637906,-109.18148521,0.00010958,2]
[354046920,1740204637915,-500.0,0.00010958,2]
[354046921,1740204637923,-261.70090483,0.00010958,2]
[354046922,1740204637933,-365.19455263,0.00010958,2]
[354046923,1740204637951,-134.80544737,0.00010958,2]
[354046924,1740204637961,-500.0,0.00010958,2]
[354046926,1740204637970,-500.0,0.00010958,2]
[354046928,1740204637980,-500.0,0.00010958,2]
[354046930,1740204637989,-500.0,0.00010958,2]
[354046932,1740204637998,-500.0,0.00010958,2]
[354046934,1740204638007,-500.0,0.00010958,2]
[354046936,1740204638016,-500.0,0.00010958,2]
[354046938,1740204638025,-500.0,0.00010958,2]
[354046940,1740204638034,-500.0,0.00010958,2]
[354046942,1740204638043,-500.0,0.00010958,2]
[354046944,1740204638052,-500.0,0.00010958,2]
[354046946,1740204638062,-500.0,0.00010958,2]
[354046948,1740204638073,-500.0,0.00010958,2]
[354046949,1740204638082,-500.0,0.00010958,2]
[354046951,1740204638092,-500.0,0.00010958,2]
[354046953,1740204638101,-500.0,0.00010958,2]
[354046955,1740204638110,-500.0,0.00010958,2]
[354046957,1740204638119,-500.0,0.00010958,2]
[354046959,1740204638128,-500.0,0.00010958,2]
[354046961,1740204638137,-500.0,0.00010958,2]
[354046962,1740204638148,-500.0,0.00010958,2]
[354046963,1740204638157,-548.86,0.00010958,2]
[354046965,1740204638166,-500.0,0.00010958,2]
[354046967,1740204638175,-500.0,0.00010958,2]
[354046969,1740204638184,-500.0,0.00010958,2]
[354046971,1740204638194,-500.0,0.00010958,2]
[354046973,1740204638203,-500.0,0.00010958,2]
[354046975,1740204638212,-500.0,0.00010958,2]
[354046977,1740204638222,-500.0,0.00010958,2]
[354046979,1740204638233,-604.73,0.00010958,2]
[354046981,1740204638242,-500.0,0.00010958,2]
[354046983,1740204638251,-667.92,0.00010958,2]
[354046985,1740204638260,-500.0,0.00010958,2]
[354046987,1740204638269,-500.0,0.00010958,2]
[354046989,1740204638278,-500.0,0.00010958,2]
[354046991,1740204638288,-435.14827688,0.00010958,2]
[354046993,1740204638302,-64.85172312,0.00010958,2]
[354046995,1740204638311,-500.0,0.00010958,2]
[354046997,1740204638320,-500.0,0.00010958,2]
[354046999,1740204638329,-500.0,0.00010958,2]
[354047001,1740204638338,-1000.0,0.00010958,2]
[354047003,1740204638347,-500.0,0.00010958,2]
[354047005,1740204638356,-2256.45,0.00010958,2]
[354047007,1740204638365,-587.77,0.00010958,2]
[354047009,1740204638374,-500.0,0.00010958,2]
[354047011,1740204638383,-853.48,0.00010958,2]
[354047013,1740204638392,-427.61516818,0.00010958,2]
[354047016,1740204638405,-72.38483182,0.00010958,2]
[354047018,1740204638414,-500.0,0.00010958,2]
[354047019,1740204638423,-500.0,0.00010958,2]
[354047022,1740204638433,-500.0,0.00010958,2]
[354047024,1740204638442,-500.0,0.00010958,2]
[354047026,1740204638451,-500.0,0.00010958,2]
[354047028,1740204638461,-500.0,0.00010958,2]
[354047030,1740204638469,-500.0,0.00010958,2]
[354047031,1740204638478,-500.0,0.00010958,2]
[354047033,1740204638488,-576.23573517,0.00010958,2]
[354047035,1740204638498,-500.0,0.00010958,2]
[354047037,1740204638507,-500.0,0.00010958,2]
[354047038,1740204638516,-875.95,0.00010958,2]
[354047039,1740204638531,-777.87,0.00010958,2]
[354047040,1740204638543,-563.28344956,0.00010958,2]
[354047041,1740204638553,-500.0,0.00010958,2]
[354047042,1740204638563,-500.0,0.00010958,2]
[354047043,1740204638572,-500.0,0.00010958,2]
[354047044,1740204638582,-500.0,0.00010958,2]
[354047045,1740204638591,-500.0,0.00010958,2]
[354047046,1740204638601,-500.0,0.00010958,2]
[354047047,1740204638611,-521.34,0.00010958,2]
[354047048,1740204638621,-500.0,0.00010958,2]
[354047049,1740204638629,-568.33,0.00010958,2]
[354047050,1740204638639,-500.0,0.00010958,2]
[354047051,1740204638648,-500.0,0.00010958,2]
[354047052,1740204638658,-500.0,0.00010958,2]
[354047053,1740204638667,-573.34,0.00010958,2]
[354047054,1740204638676,-500.0,0.00010958,2]
[354047055,1740204638685,-500.0,0.00010958,2]
[354047056,1740204638696,-777.69,0.00010958,2]
[354047057,1740204638705,-500.0,0.00010958,2]
[354047058,1740204638715,-500.0,0.00010958,2]
[354047059,1740204638723,-500.0,0.00010958,2]
[354047060,1740204638733,-588.41789853,0.00010958,2]
[354047061,1740204638742,-566.46,0.00010958,2]
[354047062,1740204638751,-500.0,0.00010958,2]
[354047063,1740204638761,-500.0,0.00010958,2]
[354047064,1740204638770,-500.0,0.00010958,2]
[354047065,1740204638779,-189.55,0.00010959,2]
[354047066,1740204638788,-1000.0,0.00011,2]
[354047067,1740204638797,-1000.0,0.00011,2]
[354047068,1740204638807,-471.0,0.00011,2]
[354047069,1740204638816,-1000.0,0.00011,2]
[354047070,1740204638825,-1308.2309572,0.00011007,3]
[354047071,1740204638834,-500.0,0.00011007,2]
[354047072,1740204638843,-500.0,0.00011007,2]
[354047073,1740204638853,-500.0,0.00011007,2]
[354047074,1740204638862,-496.32498724,0.00011007,2]
[354047075,1740204638871,-151.0,0.00011008,2]
[354047076,1740204638880,-69971.99439702,0.00011008,2]
[354047077,1740204638889,-150.0,0.00011024,2]
[354047078,1740204638899,-604.73,0.0001104,2]
[354047079,1740204638908,-505.50172224,0.00011041,2]
[354047080,1740204638917,-500.0,0.00011041,2]
[354047081,1740204638926,-500.0,0.00011041,2]
[354047082,1740204638935,-577.92028039,0.00011041,2]
[354047083,1740204638944,-500.0,0.00011041,2]
[354047084,1740204638954,-645.52540606,0.00011041,2]
[354047085,1740204638963,-500.0,0.00011041,2]
[354047086,1740204638973,-500.0,0.00011041,2]
[354047087,1740204638982,-500.0,0.00011041,2]
[354047088,1740204638992,-500.0,0.00011041,2]
[354047089,1740204639001,-500.0,0.00011041,2]
[354047090,1740204639011,-500.0,0.00011041,2]
[354047091,1740204639020,-500.0,0.00011041,2]
[354047092,1740204639029,-500.0,0.00011041,2]
[354047093,1740204639039,-500.0,0.00011041,2]
[354047094,1740204639049,-500.0,0.00011041,2]
[354047095,1740204639058,-500.0,0.00011041,2]
[354047096,1740204639068,-500.0,0.00011041,2]
[354047097,1740204639077,-621.46204127,0.00011041,2]
[354047098,1740204639087,-159.72767211,0.00011041,2]
[354047099,1740204639096,-500.0,0.00011041,2]
[354047100,1740204639106,-500.0,0.00011041,2]
[354047101,1740204639115,-500.0,0.00011041,2]
[354047102,1740204639124,-500.0,0.00011041,2]
[354047103,1740204639133,-500.0,0.00011041,2]
[354047104,1740204639143,-500.0,0.00011041,2]
[354047105,1740204639152,-500.0,0.00011041,2]
[354047106,1740204639161,-500.0,0.00011041,2]
[354047107,1740204639170,-500.0,0.00011041,2]
[354047108,1740204639180,-571.84898476,0.00011041,2]
[354047109,1740204639189,-151.599223,0.00011041,2]
[354047110,1740204639199,-500.0,0.00011041,2]
[354047111,1740204639208,-500.0,0.00011041,2]
[354047112,1740204639218,-500.0,0.00011041,2]
[354047113,1740204639228,-500.0,0.00011041,2]
[354047114,1740204639238,-619.462385,0.00011041,2]
[354047115,1740204639248,-500.0,0.00011041,2]
[354047116,1740204639257,-500.0,0.00011041,2]
[354047117,1740204639267,-603.43440501,0.00011041,2]
[354047118,1740204639277,-500.0,0.00011041,2]
[354047119,1740204639286,-425.88180106,0.00011041,2]
[354047120,1740204639295,-500.0,0.00011041,2]
[354047121,1740204639304,-708.193006,0.00011041,2]
[354047122,1740204639314,-500.0,0.00011041,2]
[354047123,1740204639323,-500.0,0.00011041,2]
[354047124,1740204639332,-500.0,0.00011041,2]
[354047125,1740204639342,-578.8134913,0.00011041,2]
[354047126,1740204639351,-500.0,0.00011041,2]
[354047128,1740204639360,-500.0,0.00011041,2]
[354047129,1740204639370,-500.0,0.00011041,2]
[354047130,1740204639380,-500.0,0.00011041,2]
[354047131,1740204639390,-500.0,0.00011041,2]
[354047132,1740204639401,-500.0,0.00011041,2]
[354047133,1740204639410,-500.0,0.00011041,2]
[354047134,1740204639419,-500.0,0.00011041,2]
[354047135,1740204639428,-500.0,0.00011041,2]
[354047136,1740204639438,-500.0,0.00011041,2]
[354047137,1740204639447,-500.0,0.00011041,2]
[354047138,1740204639457,-500.0,0.00011041,2]
[354047139,1740204639466,-500.0,0.00011041,2]
[354047140,1740204639476,-464.68310554,0.00011041,2]
[354047141,1740204639486,-500.0,0.00011041,2]
[354047142,1740204639496,-500.0,0.00011041,2]
[354047143,1740204639506,-500.0,0.00011041,2]
[354047144,1740204639516,-500.0,0.00011041,2]
[354047145,1740204639526,-500.0,0.00011041,2]
[354047146,1740204639538,-500.0,0.00011041,2]
[354047147,1740204639548,-500.0,0.00011041,2]
[354047148,1740204639558,-500.0,0.00011041,2]
[354047150,1740204639567,-500.0,0.00011041,2]
[354047151,1740204639576,-500.0,0.00011041,2]
[354047153,1740204639585,-500.0,0.00011041,2]
[354047155,1740204639595,-500.0,0.00011041,2]
[354047156,1740204639604,-500.0,0.00011041,2]
[354047157,1740204639613,-2455.59,0.00011041,2]
[354047158,1740204639622,-547.25299508,0.00011041,2]
[354047159,1740204639631,-500.0,0.00011041,2]
[354047160,1740204639641,-500.0,0.00011041,2]
[354047161,1740204639650,-500.0,0.00011041,2]
[354047162,1740204639660,-500.0,0.00011041,2]
[354047163,1740204639669,-500.0,0.00011041,2]
[354047164,1740204639678,-500.0,0.00011041,2]
[354047165,1740204639688,-1617.7,0.00011041,2]
[354047166,1740204639697,-500.0,0.00011041,2]
[354047167,1740204639706,-319.45685768,0.00011041,2]
[354047168,1740204639716,-500.0,0.00011041,2]
[354047169,1740204639725,-500.0,0.00011041,2]
[354047170,1740204639736,-500.0,0.00011041,2]
[354047171,1740204639746,-517.71,0.00011041,2]
[354047172,1740204639756,-500.0,0.00011041,2]
[354047173,1740204639766,-500.0,0.00011041,2]
[354047174,1740204639775,-927.42,0.00011041,2]
[354047175,1740204639784,-562.64,0.00011041,2]
[354047176,1740204639793,-500.0,0.00011041,2]
[354047177,1740204639802,-500.0,0.00011041,2]
[354047178,1740204639811,-500.0,0.00011041,2]
[354047179,1740204639820,-500.0,0.00011041,2]
[354047180,1740204639830,-500.0,0.00011041,2]
[354047181,1740204639839,-500.0,0.00011041,2]
[354047182,1740204639849,-500.0,0.00011041,2]
[354047183,1740204639858,-500.0,0.00011041,2]
[354047184,1740204639868,-500.0,0.00011041,2]
[354047185,1740204639877,-211.63008539,0.00011041,2]
[354047186,1740204639887,-500.0,0.00011041,2]
[354047187,1740204639896,-500.0,0.00011041,2]
[354047188,1740204639905,-500.0,0.00011041,2]
[354047189,1740204639914,-1250.05,0.00011041,2]
[354047190,1740204639924,-500.0,0.00011041,2]
[354047191,1740204639933,-500.0,0.00011041,2]
[354047192,1740204639943,-500.0,0.00011041,2]
[354047193,1740204639952,-500.0,0.00011041,2]
[354047194,1740204639961,-500.0,0.00011041,2]
[354047195,1740204639971,-500.0,0.00011041,2]
[354047196,1740204639980,-500.0,0.00011041,2]